Cogmind - Beta 13 @@@ ROGUE MODE // 2024.03.26 @ 11:35:11 Player: Genericgamer16 Result: Destroyed by Y-54 Guardian with Flak Gun Performance ------------- Evolutions (3) 1500 Regions Visited (6) 1200 Robots Destroyed (53) 265 Value Destroyed (1779) 1779 Prototype IDs (5) 100 Alien Tech Used (0) 0 Bonus (672) 672 TOTAL SCORE: 5516 Bonus ------- High Alert Combat Kills 69 Follower Combat Kills 103 Entered DSFs 500 Cogmind --------- Core Integrity 0/700 Matter 275/300 Energy 16/100 System Corruption 0% Temperature Cool (36) Movement Hovering (240) Ox3 Location -7/DSF Parts ------- > --- POWER (2) -------- (None) > --- PROPULSION (5) --- Gravmag System > --- UTILITY (3) ------ Large Storage Unit Trap Scanner > --- WEAPON (3) ------- Plasma Cannon > --- INVENTORY (15) --- Heat Sink Large Storage Unit Trap Scanner Advanced Visual Processing Unit Core Analyzer Authchip [R/Combat] Authchip [Weapon] System Restoration Module EM Pulse Gun Heavy Particle Gun Heavy Laser Heavy Flail Heavy Flail Katana Peak State ------------ > --- POWER ------------ Light Angular Momentum Engine Light Angular Momentum Engine > --- PROPULSION ------- Aluminum Leg Carbon-fiber Leg Carbon-fiber Leg Improved Carbon-fiber Leg Improved Carbon-fiber Leg > --- UTILITY ---------- Large Storage Unit Trap Scanner Improved Signal Interpreter > --- WEAPON ----------- Precision Beam Rifle Katana Katana > --- INVENTORY -------- Light Angular Momentum Engine Heat Sink Large Storage Unit Trap Scanner Advanced Visual Processing Unit Core Analyzer Authchip [R/Combat] Authchip [Weapon] System Restoration Module EM Pulse Gun Beam Rifle Heavy Particle Gun Heavy Flail Katana [Rating: 46] Favorites ----------- Power Ion Engine Engine Ion Engine Power Core Light Nuclear Core Propulsion Aluminum Leg Treads Light Treads Leg Aluminum Leg Wheel Compact Wheel Flight Unit VTOL Module Utility Large Storage Unit Device Trap Scanner Storage Large Storage Unit Processor Improved Signal Interpreter Protection Light Armor Plating Weapon Katana Energy Gun Beam Rifle Energy Cannon Beam Cannon Ballistic Gun Assault Rifle Launcher Grenade Launcher Slashing Weapon Katana Build | -11 -10 -9 -8 -8 -7 -7 ------- Run | Yrd Mat Mat Mat Sto Fac DSF Slots Evolved 6 | . . 2 2 . 2 . Power 1 | . . . 1 . . . Propulsion 3 | . . 2 . . 1 . Utility 1 | . . . 1 . . . Weapon 1 | . . . . . 1 . Parts Attached 68 | 5 5 7 17 17 2 15 Power 14 | . 2 1 4 3 . 4 Engine 11 | . 2 1 4 2 . 2 Core 3 | . . . . 1 . 2 Reactor . | . . . . . . . Propulsion 24 | 2 1 3 6 5 . 7 Treads 3 | . . . 3 . . . Leg 16 | 1 1 3 3 5 . 3 Wheel 1 | 1 . . . . . . Hover 1 | . . . . . . 1 Flight 3 | . . . . . . 3 Utility 12 | 1 1 2 2 5 1 . Device 3 | . . . 1 2 . . Storage 6 | 1 1 2 . 2 . . Processor 2 | . . . . 1 1 . Hackware . | . . . . . . . Protection 1 | . . . 1 . . . Artifact . | . . . . . . . Weapon 18 | 2 1 1 5 4 1 4 Energy Gun 6 | 1 . . 2 1 . 2 Energy Cannon 4 | . 1 . 1 . . 2 Ballistic Gun 4 | 1 . . 2 1 . . Ballistic Cannon . | . . . . . . . Launcher 2 | . . 1 . 1 . . Special Weapon . | . . . . . . . Impact Weapon . | . . . . . . . Slashing Weapon 2 | . . . . 1 1 . Piercing Weapon . | . . . . . . . Special Melee Weapon . | . . . . . . . Unidentified Prototypes 1 | . . . . 1 . . Parts Lost 27 | . . . 3 5 . 19 Power 7 | . . . 1 1 . 5 Propulsion 11 | . . . . 1 . 10 Utility 3 | . . . 1 1 . 1 Weapon 6 | . . . 1 2 . 3 Highest Loss Streak 9 | . . . 1 2 . 9 To Critical Strikes . | . . . . . . . Average Slot Usage (%) 89 | . 85 100 89 97 89 73 Engine 11 | . 11 11 10 17 15 7 Treads 8 | . . . 16 10 . . Leg 23 | . 25 44 19 24 30 16 Device 4 | . . . 3 12 7 7 Storage 14 | . 16 22 18 9 7 7 Processor 1 | . . . . 3 7 6 Protection 1 | . . . 4 . . . Energy Gun 6 | . 12 . 7 4 7 5 Energy Cannon 2 | . 1 . 4 1 . 1 Ballistic Gun 3 | . 14 11 . 3 . . Launcher 3 | . . 10 4 . . . Slashing Weapon 3 | . . . . 7 12 11 Naked Turns . | . . . . . . . Heaviest Build 70 | 8 20 40 51 70 46 46 Greatest Support 76 | 16 20 43 62 62 55 76 Greatest Overweight (x) 10 | . . . 4 1 . 10 Average Overweight (x) . | . . . . . . 1 Largest Inventory Capacity 15 | 8 8 15 15 15 15 15 Average Capacity 13 | 6 8 13 15 15 15 15 Most Carried 15 | 7 8 15 15 15 14 15 Average Carried 12 | 3 7 12 14 14 13 14 Final Capacity 15 | 8 8 15 15 15 15 15 Final Carried 15 | 7 8 15 15 15 14 14 Class Distribution -------------------- 64% | Mutant 35% | Scavenger-Mutant Dominant Class ---------------- Mutant | -10/Materials Mutant | -9/Materials Mutant | -8/Materials Scavenger-Mutant | -8/Storage Scavenger-Mutant | -7/Factory Scavenger-Mutant | -7/DSF Resources | -11 -10 -9 -8 -8 -7 -7 ----------- Run | Yrd Mat Mat Mat Sto Fac DSF Matter Collected 914 | 212 136 112 183 201 . 70 Remotely . | . . . . . . . Salvage Created 1983 | . 189 165 487 730 . 412 Parts 109 | . 13 11 26 38 . 21 Haulers Intercepted 1 | . 1 . . . . . Recyclers Shooed 3 | 1 1 . 1 . . . Parts Field Recycled . | . . . . . . . Retrieved Matter . | . . . . . . . Parts Self-Destructed . | . . . . . . . Prevented . | . . . . . . . Kills | -11 -10 -9 -8 -8 -7 -7 ------- Run | Yrd Mat Mat Mat Sto Fac DSF Combat Hostiles Destroyed 45 | . 3 3 13 17 . 9 Melee 13 | . . . . 10 . 3 Guns 15 | . 3 3 6 . . 3 Cannons 10 | . . . 7 . . 3 AOE 7 | . . . . 7 . . Classes Destroyed 12 | . 5 1 3 2 . 1 Worker 1 | . . . 1 . . . Builder 3 | . . . 1 2 . . Tunneler 1 | . 1 . . . . . Hauler 1 | . 1 . . . . . Watcher 2 | . 1 . . 1 . . Swarmer 13 | . 1 . 6 3 . 3 Grunt 16 | . 2 . 2 11 . 1 Duelist 1 | . . . . 1 . . Protector 1 | . . . . 1 . . Sentry 7 | . . 3 3 1 . . Specialist 5 | . . . . . . 5 Hunter 2 | . . . 2 . . . Best Kill Streak 10 | . 3 2 7 10 . 3 Combat Bots Only 7 | . 2 2 6 7 . 3 Max Kills in Single Turn 4 | . 1 1 1 4 . 1 Gunslinging . | . . . . . . . Exploded 3 | . . . . 3 . . Melee 1 | . . . . 1 . 1 Uniques/NPCs Destroyed . | . . . . . . . Combat | -11 -10 -9 -8 -8 -7 -7 -------- Run | Yrd Mat Mat Mat Sto Fac DSF Hostile Shots Fired 402 | . 12 24 87 93 . 186 Missed 118 | . 2 8 26 24 . 58 Damage Taken 4117 | . 102 229 859 1027 . 1900 Core 979 | . 20 . 143 112 . 704 Absorbed by Shields . | . . . . . . . Regen/Repaired (Parts) 79 | . . . 79 . . . Core Remaining (%) 86 | 100 92 100 . 53 . . Volleys Fired 126 | 2 19 18 54 9 . 24 Largest 2 | 1 2 1 2 2 . 1 Hottest 123 | 40 80 30 123 123 . 80 Shots Fired 169 | 2 38 18 75 12 . 24 Gun 118 | 2 33 17 48 6 . 12 Cannon 45 | . 5 . 27 1 . 12 Launcher 6 | . . 1 . 5 . . Special . | . . . . . . . Kinetic 39 | . 19 17 1 2 . . Thermal 124 | 2 19 . 74 5 . 24 Explosive 6 | . . 1 . 5 . . Electromagnetic . | . . . . . . . Robot Hit Streak 11 | 1 5 8 11 3 . 4 Robot Miss Streak 4 | 1 2 1 4 2 . 3 Penetration Max . | . . . . . . . Secondary Targets . | . . . . . . . Shots Hit Robots 140 | 1 21 15 49 30 . 24 Core Hits 79 | . 10 7 21 30 . 11 Critical Kills . | . . . . . . . Critical Parts Destroyed . | . . . . . . . Critical Strikes 8 | . . . 5 1 . 2 Burn 5 | . . . 5 . . . Sever 3 | . . . . 1 . 2 Melee Attacks 52 | . . . . 31 . 21 Impact . | . . . . . . . Slashing 52 | . . . . 31 . 21 Piercing . | . . . . . . . Sneak Attacks 1 | . . . . . . 1 Combat Hostiles 1 | . . . . . . 1 Follow-up Attacks 3 | . . . . . . 3 Damage Inflicted 3571 | 12 289 204 844 1466 . 756 Guns 1174 | 12 231 185 521 73 . 152 Cannons 571 | . 54 . 314 17 . 186 Explosions 712 | . . 19 . 693 . . Melee 1101 | . . . . 683 . 418 Ramming 13 | . 4 . 9 . . . Kinetic 343 | . 118 185 15 25 . . Thermal 1402 | 12 167 . 820 65 . 338 Explosive 712 | . . 19 . 693 . . Electromagnetic . | . . . . . . . Impact . | . . . . . . . Slashing 1101 | . . . . 683 . 418 Piercing . | . . . . . . . Highest Corruption 2 | . . 2 . . . . Average Corruption 2 | . . 2 . . . . Corruption Purged . | . . . . . . . Corruption Blocked . | . . . . . . . Effects 1 | . . 1 . . . . Data Loss (major) 1 | . . 1 . . . . Overload Shots . | . . . . . . . Overflow Damage 15 | . . . . 12 . 3 Projectiles . | . . . . . . . Explosions . | . . . . . . . Melee 15 | . . . . 12 . 3 Knockbacks . | . . . . . . . Impact . | . . . . . . . Kinetic . | . . . . . . . Secondary . | . . . . . . . Self-Inflicted Damage . | . . . . . . . Shots . | . . . . . . . Rammed 1 | . . . 1 . . . Targets Rammed 4 | . 2 . 2 . . . Kicked 2 | . 2 . . . . . Crushed 1 | . . . 1 . . . Highest Temperature 216 | . 90 14 216 194 . 129 Average Temperature 58 | . 40 7 58 95 . 46 Received Heat Transfer 1092 | . 48 90 162 477 . 315 Siege Activations . | . . . . . . . Robots Corrupted . | . . . . . . . Combat Hostiles . | . . . . . . . Parts Fried . | . . . . . . . Impact Corruptions . | . . . . . . . Robots Melted . | . . . . . . . Combat Hostiles . | . . . . . . . Parts Melted 6 | . 1 . 5 . . . Heat Transferred 3390 | 25 361 . 2220 138 . 646 Parts Sabotaged . | . . . . . . . Parts Stolen . | . . . . . . . Parts Stripped . | . . . . . . . Power Chain Reactions . | . . . . . . . Alert | -11 -10 -9 -8 -8 -7 -7 ------- Run | Yrd Mat Mat Mat Sto Fac DSF Peak Influence 593 | . 133 201 341 593 178 248 Initial 178 | . . 55 84 99 178 128 Average 182 | . 48 117 179 378 178 176 Maximum Alert Level 2 | . . 1 1 2 . 1 Low Security (%) 63 | 100 100 80 56 19 100 68 Level 1 28 | . . 19 43 33 . 31 Level 2 7 | . . . . 47 . . Level 3 . | . . . . . . . Level 4 . | . . . . . . . Level 5 . | . . . . . . . High Security . | . . . . . . . Max Security . | . . . . . . . Sterilizations 1 | . . . . . . 1 Squads Dispatched 5 | . . . . 3 . 2 Investigation . | . . . . . . . Extermination . | . . . . . . . Reinforcement 3 | . . . . 1 . 2 Assault 2 | . . . . 2 . . Garrison . | . . . . . . . Intercept . | . . . . . . . Searches Triggered . | . . . . . . . Construction Impeded . | . . . . . . . Haulers Reinforced . | . . . . . . . Active Scanning Responses . | . . . . . . . Cargo Convoy Interrupts . | . . . . . . . Stealth | -11 -10 -9 -8 -8 -7 -7 --------- Run | Yrd Mat Mat Mat Sto Fac DSF Distress Signals 7 | . 2 1 2 2 . . Communications Jammed . | . . . . . . . Distress Signals . | . . . . . . . Times Spotted 82 | . 7 5 22 31 . 17 Peak Tracking Total 11 | . 4 3 11 7 . 5 Tactical Retreats 6 | . 1 . 1 . . 4 Traps | -11 -10 -9 -8 -8 -7 -7 ------- Run | Yrd Mat Mat Mat Sto Fac DSF Traps Triggered 1 | . . 1 . . . . Indirectly . | . . . . . . . Trap Hack Attempts . | . . . . . . . Triggered . | . . . . . . . Disarmed . | . . . . . . . Reprogrammed . | . . . . . . . Reused . | . . . . . . . Traps Extracted . | . . . . . . . Installed . | . . . . . . . Triggered . | . . . . . . . Machines | -11 -10 -9 -8 -8 -7 -7 ---------- Run | Yrd Mat Mat Mat Sto Fac DSF Machines Disabled 1 | . . . . 1 . . Max in Single Turn 1 | . . . . 1 . . Machines Repaired . | . . . . . . . Machines Dismantled . | . . . . . . . Machines Sabotaged . | . . . . . . . Overloaded Fab Kills . | . . . . . . . Hacking | -11 -10 -9 -8 -8 -7 -7 --------- Run | Yrd Mat Mat Mat Sto Fac DSF Machines Accessed 13 | . 3 3 4 1 2 . Terminals 10 | . 2 3 3 1 1 . Fabricators . | . . . . . . . Repair Stations 2 | . 1 . 1 . . . Recycling Units . | . . . . . . . Scanalyzers 1 | . . . . . 1 . Garrison Access . | . . . . . . . Total Hacks 24 | . 5 5 9 2 3 . Successful 9 | . 3 2 3 . 1 . Failed 15 | . 2 3 6 2 2 . Catastrophic 2 | . . . . 1 1 . Database Lockouts . | . . . . . . . Manual . | . . . . . . . Terminals 19 | . 4 5 7 2 1 . Fabricators . | . . . . . . . Repair Stations 3 | . 1 . 2 . . . Recycling Units . | . . . . . . . Scanalyzers 2 | . . . . . 2 . Garrison Access . | . . . . . . . Terminal Hacks 7 | . 3 2 1 . 1 . Prototype ID Bank 2 | . 1 . 1 . . . Open DSF 1 | . . . . . 1 . Emergency Access Points 2 | . 1 1 . . . . Alert Level 1 | . . 1 . . . . Locate Traps 1 | . 1 . . . . . Fabricator Hacks . | . . . . . . . Repair Station Hacks 2 | . . . 2 . . . Scan Component 1 | . . . 1 . . . Repair 1 | . . . 1 . . . Recycling Unit Hacks . | . . . . . . . Scanalyzer . | . . . . . . . Garrison Access Hacks . | . . . . . . . Unauthorized Hacks . | . . . . . . . Terminals . | . . . . . . . Fabricators . | . . . . . . . Repair Stations . | . . . . . . . Recycling Units . | . . . . . . . Scanalyzers . | . . . . . . . Garrison Access . | . . . . . . . Data Cores Recovered . | . . . . . . . Used . | . . . . . . . Hacking Detections 10 | . 2 2 4 1 1 . Full Trace Events . | . . . . . . . Feedback Events . | . . . . . . . Feedback Blocked . | . . . . . . . Robot Schematics Acquired . | . . . . . . . Robots Built . | . . . . . . . Authchips . | . . . . . . . Time . | . . . . . . . Total Robot Build Rating . | . . . . . . . Part Schematics Acquired . | . . . . . . . Parts Built . | . . . . . . . Authchips . | . . . . . . . Time . | . . . . . . . Total Part Build Rating . | . . . . . . . Parts Repaired 1 | . . . 1 . . . Time 13 | . . . 13 . . . Parts Recycled . | . . . . . . . Recycled Matter . | . . . . . . . Retrieved Matter . | . . . . . . . Retrieved Components . | . . . . . . . Parts Scanalyzed . | . . . . . . . Part Schematics Acquired . | . . . . . . . Parts Damaged . | . . . . . . . Bothacking | -11 -10 -9 -8 -8 -7 -7 ------------ Run | Yrd Mat Mat Mat Sto Fac DSF Used RIF Installer . | . . . . . . . Robots Hacked . | . . . . . . . Non-combat . | . . . . . . . Combat . | . . . . . . . Robot Hacks Applied . | . . . . . . . Relay Couplers Released . | . . . . . . . Fabnet Peak Effective % . | . . . . . . . Robots Rewired . | . . . . . . . Allies Hacked . | . . . . . . . Hacks Repelled . | . . . . . . . Allies | -11 -10 -9 -8 -8 -7 -7 -------- Run | Yrd Mat Mat Mat Sto Fac DSF Total Allies 2 | . . . . 2 . . Largest Group 2 | . . . . 2 . . Highest-Rated Group 62 | . . . . 62 . . Highest-Rated Ally 31 | . . . . 31 . . Total Orders . | . . . . . . . Ally Attacks 28 | . . . . 28 . . Total Damage 434 | . . . . 434 . . Kills 3 | . . . . 3 . . Allies Corrupted . | . . . . . . . Allies Melted . | . . . . . . . Intel | -11 -10 -9 -8 -8 -7 -7 ------- Run | Yrd Mat Mat Mat Sto Fac DSF Robot Analysis Total . | . . . . . . . Derelict Logs Recovered . | . . . . . . . Drone Launches . | . . . . . . . Drone Recoveries . | . . . . . . . Exploration | -11 -10 -9 -8 -8 -7 -7 ------------- Run | Yrd Mat Mat Mat Sto Fac DSF Turns Passed 2435 | 118 264 284 900 405 96 368 Spaces Moved 1124 | 70 162 174 320 197 78 123 Core 10 | 7 . . . . . 3 Treads 322 | . . . 272 50 . . Legs 711 | 34 128 174 48 147 78 102 Wheels 63 | 29 34 . . . . . Hover . | . . . . . . . Flight 18 | . . . . . . 18 Fastest Speed 50 | 50 100 120 120 120 120 120 Average Speed 149 | 104 115 120 195 130 120 190 Slowest Speed 765 | 120 120 120 400 235 120 765 Overloaded Moves . | . . . . . . . Propulsion Burnouts . | . . . . . . . Robots Hopped . | . . . . . . . Cave-ins Triggered . | . . . . . . . Exploration Rate (%) 29 | 6 37 29 26 41 2 65 Regions Visited 6 Branch Regions 1 Pre-discovered Areas . | . . . . . . . Known Exits Taken 1 | . . . . . 1 . Unknown Exits Taken 5 | 1 1 1 1 1 . . Scrap Searched . | . . . . . . . Spaces Dug 1 | . . . . 1 . . Terrain Destroyed 39 | . . 7 . 32 . . Melee 1 | . . . . 1 . . Projectile . | . . . . . . . AOE 38 | . . 7 . 31 . . Terrain Rammed . | . . . . . . . Walls Destroyed . | . . . . . . . Machines Disabled . | . . . . . . . Actions | -11 -10 -9 -8 -8 -7 -7 --------- Run | Yrd Mat Mat Mat Sto Fac DSF Total 1632 | 111 202 230 515 288 80 206 Wait 175 | 25 2 21 110 9 . 8 Move 1118 | 69 161 173 319 196 77 123 Hop . | . . . . . . . Pick Up 56 | 10 7 9 8 10 1 11 Fast Attach 19 | 2 1 . 1 7 . 8 Attach 23 | 3 2 2 7 2 2 5 Detach 1 | . . . 1 . . . Swap 26 | . 2 5 9 8 . 2 Drop 36 | . 6 2 4 16 . 8 Fire 126 | 2 19 18 54 9 . 24 Melee 48 | . . . . 31 . 17 Ram . | . . . . . . . Kick 2 | . 2 . . . . . Crush 2 | . . . 2 . . . Escape Stasis . | . . . . . . . Rewire . | . . . . . . . Trap . | . . . . . . . Miscellaneous . | . . . . . . . Route ------- -11/Scrapyard -10/Materials -9/Materials -8/Materials -8/Storage -7/Factory -7/DSF (discovered 1 exit: [*Fac]) History --------- Turn | Location | Event 16 | -11/Scrapyard | Discovered new exit (range 15) 119 | -11/Scrapyard | Entered Materials 279 | -10/Materials | Discovered new exit (range 8) 309 | -10/Materials | Build established: Mutant 383 | -10/Materials | Entered another Materials area 383 | -9/Materials | Evolved 2 slots: Propulsion x2 639 | -9/Materials | Discovered new exit (range 7) 667 | -9/Materials | Entered another Materials area 667 | -8/Materials | Evolved 2 slots: Power x1, Utility x1 692 | -8/Materials | Repaired Assault Rifle 716 | -8/Materials | Discovered new exit (range 16) 1567 | -8/Materials | Entered Storage 1577 | -8/Storage | Met a pair of Derelict thieves 1679 | -8/Storage | Destroyed 7 combat bots 1828 | -8/Storage | Destroyed 7 combat bots 1955 | -8/Storage | Discovered new exit (range 13) 1957 | -8/Storage | Build established: Scavenger-Mutant 1972 | -8/Storage | Entered Factory 1972 | -7/Factory | Evolved 2 slots: Propulsion x1, Weapon x1 2068 | -7/Factory | Identified exit to DSF 2068 | -7/Factory | Entered DSF 2140 | -7/DSF | Additional patrols routed to DSF 2251 | -7/DSF | Lost 5 parts (2p3n) 2285 | -7/DSF | Core integrity fell below 50% 2314 | -7/DSF | Lost 3 parts (1p1n1w) 2389 | -7/DSF | Discovered new exit (range 15) 2393 | -7/DSF | Sterilization system engaged 2413 | -7/DSF | Ambient heat levels rising (+10) 2413 | -7/DSF | Core integrity fell below 20% 2428 | -7/DSF | Ambient heat levels rising (+10) 2436 | -7/DSF | Destroyed by Y-54 Guardian with Flak Gun Last Messages --------------- 02389_ Penetrated by Slug. 02389_ Imp. Signal Interpreter destroyed. 02389_ Critical hit (Blast). 02389_ Knocked back. 02393_ ALERT: Persistent threat exposed, engaging DSF rapid sterilization system. 02399_ VTOL Module destroyed. 02401_ Lgt. Angular Momentum Engine destroyed. 02401_ Lgt. Nuclear Core destroyed. 02401_ VTOL Module destroyed. 02401_ Critical hit (Blast). 02407_ Critical hit (Burn: +37). 02410_ Plasma Cannon destroyed. 02413_ ALERT: Ambient heat levels +10. 02424_ G-47 Trooper destroyed. 02428_ ALERT: Ambient heat levels +10. 02428_ G-50 Soldier Carbon-fiber Leg severed. 02431_ Critical hit (Burn: +37). 02435_ Acquired Gravmag System. 02436_ Katana destroyed. Map ----- +----------------------------------------------------+ | ?????????""????????????????????????? | | ?????????#"?????????????###????????? | | ??????####"##???????#####"###??????? | | ??????#"""""######### //######## | | ??????#"""""## #[[[# % #!! #!!# | | ????"##"" [ ![% | | ????""""" % !% ! | | ??????#"" " ##]]#[ [### !###!! #!!# | | ??????###"%###]]#[[[#?# #?#!!!#!!# | | ???????##["########## !!######## | | ???????#[% [[#??????# !!#??????# | | ???????# [[[#??????# !!#??????# | | ???????##[ ###??????##" ###??????# | | ???????#]% #???????!! !????????# | | ???????#] #???????!! !????????# | | ???????#] #??????#!! !!???????# | | ??????### ######?##### ##???????# | | ??????#!! #?///#!!!#?# #????????? | | ??????#!! ##///#!!!##" ????????? | | ??????# "%" ?????????? | | ??????# H " ???????? | | ??????# % ?????? | | ??????# ;;!!!#!!!## ?????!!# | | ??????# g ;;!!!#?!!#???????#!!?# | | ??????###g%;Y####???#???????#???###? | | ???????#=[%@=#?????????????????????? | | ???????#=^^==#?????????????????????? | | ???????#!^^==#?????????????????????? | | ???????##=%###?????????????????????? | | ????????=!==???????????????????????? | | ???????#= !=???????????????????????? | | ???????## #???????????????????????? | | ????????# #???????????????????????? | | ????????" ???????????????????????? | | ????????" ???????????????????????? | | ????????"< ???????????????????????? | | ????????""""???????????????????????? | | ????????"""????????????????????????? | | ???????????????????????????????????? | | ???????????????????????????????????? | | ???????????????????????????????????? | | ???????????????????????????????????? | | ???????????????????????????????????? | | ???????????????????????????????????? | | ???????????????????????????????????? | | ???????????????????????????????????? | | | | | | | | | +----------------------------------------------------+ Best States ------------- Heat Dissipation 41 Energy Generation 31 Energy Capacity 425 Matter Stores 300 Matter Capacity 300 Sight Range 16 Terrain Scan Density 10 Armor Coverage 150 Evasion (%) 55 Melee Accuracy 5 Recoil Reduction 3 Authchip Count 2 Item Schematics ----------------- None Robot Schematics ------------------ None Fabricated ------------ Nothing Alien Tech Used ----------------- None Achievements -------------- None Challenges ------------ None Game ------ Seed CoreArmorDetector Manual? 0 Play Time 00:58:16 Cumulative 16.2 hours Start 2024.03.26 @ 10:32:09 End 2024.03.26 @ 11:35:11 Sessions 1 Manual Loads 0 Difficulty Rogue Special Mode None Game No. 20 Rogue 20 Adventurer 0 Explorer 0 Win Type - Total 0 Types 0/0/0/0/0/0/0/0/0 Lore% 17 Gallery% 20 Achievement% 17 Wizard Run 0 Options --------- Layout 1 ASCII 0 Keyboard 0 Movement Mouse Keybinds 0 Fullscreen 1 Font 24/Smallcaps Map View 50x35 Zoom Use 1% Tactical HUD 1 Map Filters NONE Filters NONE Steam 1 RUN: 230c504c-7b19-418f-81ba-9edaf0ddebc1